bitfinex-derivatives/quotes_SOLF0:USTF0_20220104
["timestamp","ask_amount","ask_price","bid_price","bid_amount"]
[1641281676171,3.35934576,168.0,167.95,3.0]
[1641281676873,3.35934576,168.0,167.96,33.58305607]
[1641281678774,3.35934576,168.0,167.95,36.58305607]
[1641281679375,3.35934576,168.0,167.95,3.0]
[1641281681875,7.60768139,168.0,167.95,3.0]
[1641281682877,64.5309,168.01,167.95,3.0]
[1641281683079,64.5309,168.01,167.95,7.734]
[1641281683379,3.35873842,168.0,167.96,27.66479]
[1641281683579,64.5309,168.01,167.96,27.66479]
[1641281683978,7.60768139,168.0,167.99,3.0]
[1641281684181,7.60768139,168.0,167.99,8.041]
[1641281684778,7.60768139,168.03,167.99,8.041]
[1641281684978,7.60768139,168.03,168.0,3.0]
[1641281685878,33.58305607,168.05,168.0,3.0]
[1641281686578,3.35808018,168.04,168.0,3.0]
[1641281688080,3.35808018,168.06,168.0,3.0]
[1641281688481,10.91512434,168.06,168.0,3.0]
[1641281688681,10.91512434,168.06,168.01,0.67160074]
[1641281689083,3.35808018,168.05,168.01,0.67160074]
[1641281690387,3.35808018,168.06,168.01,0.67160074]
[1641281691487,10.91550869,168.06,168.01,0.67160074]
[1641281692088,3.35808018,168.05,167.97,3.67160074]
[1641281692486,3.35808018,168.05,167.98,0.67160074]
[1641281692889,33.58305607,168.03,167.98,0.67160074]
[1641281693089,38.63805607,168.03,167.98,0.67160074]
[1641281693288,3.35808018,168.02,167.97,0.67160074]
[1641281693889,3.35808018,168.02,167.97,3.67160074]
[1641281694491,3.35808018,168.02,167.98,0.67160074]
[1641281694794,10.91550869,168.02,167.98,0.67160074]
[1641281695593,7.55742851,168.02,167.99,3.0]
[1641281695991,7.55742851,168.02,168.0,0.67160074]
[1641281696792,7.55742851,168.02,167.97,0.67160074]
[1641281696993,7.55742851,168.02,167.97,3.67160074]
[1641281697194,7.55742851,168.02,167.97,0.67160074]
[1641281697393,7.55742851,168.02,167.97,3.67160074]
[1641281697994,7.55742851,168.02,167.98,0.67160074]
[1641281699294,7.55742851,168.02,167.97,0.67160074]
[1641281699794,7.55742851,168.02,167.97,3.67160074]
[1641281699996,7.55742851,168.02,167.98,3.0]
[1641281700195,7.55742851,168.02,167.99,3.0]
[1641281700597,7.55742851,168.02,168.0,0.67160074]
[1641281701198,7.55742851,168.02,167.98,3.0]
[1641281701199,7.55742851,168.02,167.99,0.67160074]
[1641281701400,71.20292851,168.03,167.99,0.67160074]
[1641281702098,71.20292851,168.03,167.98,0.67160074]
[1641281702498,12.59245079,168.0,167.98,0.67160074]
[1641281703101,12.59245079,168.0,167.97,0.67160074]
[1641281703700,12.59245079,167.99,167.97,0.67160074]
[1641281704601,7.55742851,168.02,167.97,0.67160074]
[1641281706201,3.35842846,168.01,167.97,0.67160074]
[1641281706402,12.59349775,167.99,167.97,0.67160074]
[1641281706902,12.59349775,167.98,167.97,0.67160074]
[1641281707604,41.14048458,168.02,167.97,0.67160074]
[1641281708104,12.59363751,167.98,167.97,0.67160074]
[1641281709206,41.14048458,168.02,167.97,0.67160074]
[1641281709404,33.58305607,168.01,167.97,0.67160074]
[1641281710005,12.59318083,167.99,167.97,0.67160074]
[1641281710505,7.55742851,168.02,167.97,0.67160074]
[1641281711708,12.59281908,168.0,167.97,0.67160074]
[1641281711908,12.59281908,168.0,167.96,4.86929047]
[1641281712307,14.39609185,168.0,167.97,0.67160074]
[1641281712507,12.59281908,167.98,167.97,0.67160074]
[1641281713207,33.58305607,168.01,167.97,0.67160074]
[1641281713410,33.58305607,168.01,167.95,0.67160074]
[1641281713608,33.58305607,168.01,167.96,3.0]
[1641281713810,33.58305607,168.01,167.96,7.725]
[1641281714209,33.58305607,168.01,167.97,0.67160074]
[1641281714812,12.59388746,167.98,167.97,0.67160074]
[1641281715613,42.94375735,168.02,167.96,28.33639074]
[1641281715814,33.58305607,168.01,167.96,28.33639074]
[1641281716015,41.03869411,168.01,167.97,0.67160074]
[1641281716417,37.68005607,168.01,167.97,0.67160074]
[1641281716616,12.5401005,168.0,167.97,0.67160074]
[1641281717516,12.5401005,167.98,167.97,0.67160074]
[1641281717717,12.5401005,167.98,167.95,0.67160074]
[1641281718316,1.80327277,168.0,167.95,0.67160074]
[1641281719118,12.59498992,167.96,167.95,0.67160074]
[1641281719718,12.59498992,167.96,167.94,0.67160074]
[1641281719918,9.36070128,167.97,167.94,0.67160074]
[1641281720618,12.59534386,167.96,167.94,0.67160074]
[1641281721418,9.36070128,167.97,167.94,0.67160074]
[1641281722120,12.59535241,167.96,167.94,0.67160074]
[1641281722720,9.36070128,167.97,167.94,0.67160074]
[1641281723623,12.59295421,167.96,167.94,0.67160074]
[1641281724222,9.36070128,167.97,167.94,0.67160074]
[1641281725223,12.59295537,167.96,167.94,0.67160074]
[1641281725724,9.36070128,167.97,167.94,0.67160074]
[1641281726525,12.59297387,167.96,167.94,0.67160074]
[1641281726724,18.39797387,167.96,167.94,0.67160074]
[1641281726925,18.39797387,167.96,167.94,0.00010074]
[1641281727126,1.80327277,167.95,167.94,0.00010074]
[1641281727326,1.80327277,167.95,167.92,4.19768973]
[1641281727926,12.59363237,167.95,167.91,4.19768973]
[1641281728127,12.59363237,167.95,167.93,0.67170368]
[1641281728527,12.59363237,167.95,167.92,0.67170368]
[1641281728730,1.80325961,167.95,167.92,0.67170368]
[1641281729729,12.59375369,167.95,167.92,0.67170368]
[1641281730529,1.803251,167.95,167.92,0.67170368]
[1641281731029,12.59374675,167.95,167.92,0.67170368]
[1641281731829,1.8032459,167.95,167.92,0.67170368]
[1641281732531,12.59417668,167.95,167.92,0.67170368]
[1641281733531,40.25896668,167.95,167.92,0.67170368]
[1641281733830,42.06244822,167.95,167.92,0.67170368]
[1641281734433,1.80348154,167.94,167.92,0.67170368]
[1641281735533,40.25896668,167.95,167.92,0.67170368]
[1641281736132,1.80344791,167.94,167.92,0.67170368]
[1641281737034,40.25896668,167.95,167.92,0.67170368]
[1641281737233,27.66479,167.95,167.92,0.67170368]
[1641281737835,1.79865674,167.94,167.9,0.67170368]
[1641281738534,34.22479,167.95,167.9,0.67170368]
[1641281739138,1.79868995,167.94,167.9,0.67170368]
[1641281740139,27.66479,167.95,167.9,0.67170368]
[1641281740641,12.59417668,167.96,167.9,0.67170368]
[1641281740840,12.59417668,167.96,167.95,3.0]
[1641281741040,12.59417668,167.96,167.95,8.563]
[1641281741240,33.58305607,168.0,167.95,9.23470368]
[1641281741444,33.58305607,168.0,167.97,3.0]
[1641281741642,96.11115607,168.04,167.97,3.0]
[1641281741841,96.11115607,168.04,167.97,30.66479]
[1641281742042,3.35738337,168.03,167.98,0.67170368]
[1641281742845,5.04117472,168.03,167.98,0.67170368]
[1641281743445,3.35738337,168.02,167.98,0.67170368]
[1641281743845,5.04117472,168.02,167.98,0.67170368]
[1641281744247,3.35738337,168.01,167.96,0.67170368]
[1641281744647,5.04117472,168.01,167.96,0.67170368]
[1641281744846,64.0133,168.0,167.96,0.67170368]
[1641281745047,67.37068337,168.0,167.93,0.67170368]
[1641281745448,5.04117472,167.99,167.93,0.67170368]
[1641281745648,11.22117472,167.99,167.93,0.67170368]
[1641281745848,7.86379135,167.99,167.93,0.67170368]
[1641281746250,1.68379135,167.98,167.94,6.70566859]
[1641281746854,1.68379135,167.98,167.95,0.67170368]
[1641281748654,8.98747704,167.98,167.95,0.67170368]
[1641281748853,8.98747704,167.98,167.94,0.67170368]
[1641281751657,1.68379135,167.98,167.94,0.67170368]
[1641281756663,1.68379135,167.98,167.93,4.86939341]
[1641281756962,1.68379135,167.98,167.94,0.67170368]
[1641281760066,1.68379135,167.98,167.93,0.67170368]
[1641281760567,8.98747704,167.99,167.93,0.67170368]
[1641281761267,3.35845871,167.98,167.93,0.67170368]
[1641281762167,1.68379135,167.97,167.93,0.67170368]
[1641281763669,8.98747704,167.99,167.93,0.67170368]
[1641281764270,3.3584558,167.98,167.97,3.0]
[1641281764470,3.3584558,167.98,167.97,8.579]
[1641281764670,8.98747704,167.99,167.97,9.25070368]
[1641281764871,8.98747704,167.99,167.97,6.25070368]
[1641281765070,8.98747704,167.99,167.98,0.67170368]
[1641281766071,1.68379135,167.98,167.96,4.86939341]
[1641281766472,1.68379135,167.98,167.96,4.19768973]
[1641281766672,5.162,168.01,167.96,4.19768973]
[1641281767772,5.04719083,168.0,167.95,31.86247973]
[1641281768176,1.68885337,168.0,167.95,31.86247973]
[1641281768572,1.68885337,167.99,167.95,27.66479]
[1641281769373,1.68885337,168.0,167.95,34.86247973]
[1641281769573,1.68885337,168.0,167.95,31.86247973]
[1641281771476,12.59313259,167.99,167.95,31.86247973]
[1641281772176,12.59313259,167.98,167.95,27.66479]
[1641281773179,1.68885337,168.0,167.95,27.66479]
[1641281773379,12.59284525,167.99,167.96,6.70564333]
[1641281774181,8.99253906,168.02,167.95,31.86247973]
[1641281774581,3.35828771,168.01,167.95,31.86247973]
[1641281775182,3.35828771,168.01,167.96,6.70564734]
[1641281775381,12.59278522,167.99,167.96,6.70564734]
[1641281776081,1.68885337,168.0,167.96,6.70564734]
[1641281777382,1.68885337,168.0,167.96,4.19768973]
[1641281777683,1.68885337,168.0,167.95,27.66479]
[1641281778883,14.24219118,168.02,167.95,27.66479]
[1641281779384,3.35822897,168.01,167.95,27.66479]
[1641281779786,1.68885337,168.0,167.95,27.66479]
[1641281780988,14.24219118,168.02,167.95,27.66479]
[1641281781488,3.35822497,168.01,167.96,0.67164499]
[1641281782389,1.68885337,168.0,167.96,0.67164499]
[1641281783690,14.24219118,168.02,167.96,0.67164499]
[1641281784791,3.35822226,168.01,167.96,0.67164499]
[1641281785492,1.68885337,168.0,167.96,0.67164499]
[1641281787698,14.24219118,168.0,167.96,0.67164499]
[1641281789601,12.55333781,167.98,167.96,0.67164499]
[1641281790800,5.927,167.99,167.96,0.67164499]
[1641281791499,12.5942955,167.97,167.96,0.67164499]
[1641281791701,12.5942955,167.97,167.95,0.67164499]
[1641281792101,1.68885337,167.98,167.95,0.67164499]
[1641281792500,1.68885337,167.98,167.94,0.67164499]
[1641281792700,12.59489751,167.97,167.94,0.67164499]
[1641281794903,1.68885337,167.98,167.94,0.67164499]
[1641281795502,1.68885337,167.98,167.93,0.67164499]
[1641281795702,7.43885337,167.98,167.93,0.67164499]
[1641281796604,1.68885337,167.97,167.93,0.67164499]
[1641281806723,12.59489751,167.96,167.93,4.86933472]
[1641281807424,12.59489751,167.96,167.94,0.67164499]
[1641281807622,14.28360901,167.97,167.94,0.67164499]
[1641281808423,1.68885337,167.97,167.94,4.86933472]
[1641281808823,1.68885337,167.97,167.95,0.67164499]
[1641281809022,12.59475564,167.98,167.95,0.67164499]
[1641281809223,14.2847504,167.98,167.95,0.67164499]
[1641281809923,12.5941832,167.97,167.95,0.67164499]
[1641281810122,16.8971832,167.97,167.95,0.67164499]
[1641281810623,4.303,167.97,167.95,0.67164499]
[1641281810824,1.69005041,167.96,167.95,0.67164499]
[1641281811424,16.89684188,167.97,167.95,0.67164499]
[1641281811824,4.303,167.97,167.95,0.67164499]
[1641281812023,1.6901352,167.96,167.95,0.67164499]
[1641281812927,5.527,167.97,167.95,0.67164499]
[1641281813529,1.6901317,167.96,167.95,0.67164499]
[1641281814327,1.6901317,167.96,167.94,0.67164499]
[1641281814626,1.68804824,167.98,167.94,4.86933472]
[1641281815227,77.52855385,167.99,167.95,0.67164499]
[1641281815926,1.68801694,167.98,167.95,0.67164499]
[1641281816630,77.52855385,167.99,167.95,0.67164499]
[1641281818031,14.28223873,167.98,167.95,0.67164499]
[1641281821634,12.59405385,167.99,167.95,0.67164499]
[1641281822236,12.59405385,167.99,167.97,27.66479]
[1641281822636,14.28223873,168.01,167.97,27.66479]
[1641281822836,14.28223873,168.01,167.98,0.67164499]
[1641281825145,12.59405385,168.0,167.98,0.67164499]
[1641281831155,12.59405385,168.0,167.98,3.67164499]
[1641281831758,14.28223873,168.01,167.98,3.67164499]
[1641281831960,14.28223873,168.01,167.99,0.67164499]
[1641281832560,12.59405385,168.01,167.99,0.67164499]
[1641281834262,12.59405385,168.02,167.99,4.86933472]
[1641281834761,12.59405385,168.02,168.01,27.66479]
[1641281835164,2.09185385,168.02,168.01,28.33643499]
[1641281835363,8.99095511,168.05,168.01,31.33643499]
[1641281835563,8.99095511,168.05,168.04,3.0]
[1641281835761,8.99095511,168.05,168.04,9.49]
[1641281835961,8.99095511,168.05,168.04,10.16164499]
[1641281836365,7.30277023,168.05,168.04,10.16164499]
[1641281836864,7.30277023,168.05,168.04,37.82643499]
[1641281837065,7.30277023,168.09,168.04,43.82643499]
[1641281837665,3.35672124,168.08,168.05,0.67164499]
[1641281838265,3.35672124,168.08,168.05,3.67164499]
[1641281838665,3.35672124,168.08,168.06,0.67164499]
[1641281838866,3.35672124,168.08,168.07,27.66479]
[1641281839669,7.30277023,168.09,168.07,28.33643499]
[1641281839970,7.30277023,168.09,168.08,0.67164499]
[1641281840374,10.6593001,168.09,168.08,0.67164499]
[1641281841575,10.6593001,168.09,168.08,6.84164499]
[1641281845578,3.35652987,168.09,168.08,6.84164499]
[1641281846179,3.35652987,168.11,168.08,6.84164499]
[1641281846481,3.35652987,168.11,168.09,0.67164499]
[1641281849282,3.35652987,168.11,168.07,27.66479]
[1641281849483,3.35652987,168.11,168.07,15.74225831]
[1641281849683,6.35643182,168.11,168.07,15.74225831]
[1641281849885,3.35652987,168.11,168.07,15.74225831]
[1641281850284,33.58305607,168.1,168.07,15.74225831]
[1641281850484,33.58305607,168.1,168.08,0.67139005]
[1641281850885,36.93958594,168.09,168.08,0.67139005]
[1641281851485,3.35652987,168.09,168.08,0.67139005]
[1641281851687,9.61652987,168.09,168.08,0.67139005]
[1641281852685,11.19085439,168.09,168.08,0.67139005]
[1641281853887,44.77391046,168.09,168.08,0.67139005]
[1641281854889,11.19085439,168.09,168.08,0.67139005]
[1641281857391,44.77391046,168.09,168.08,0.67139005]
[1641281857992,11.19085439,168.09,168.08,0.67139005]
[1641281858393,11.19085439,168.09,168.08,6.67139005]
[1641281862099,11.19085439,168.09,168.07,15.74225831]
[1641281862300,11.19085439,168.09,168.03,4.19768973]
[1641281862698,7.83432452,168.09,168.03,4.19768973]
[1641281862899,7.83432452,168.09,168.01,4.19768973]
[1641281863102,1.57432452,168.08,168.01,4.19768973]
[1641281863299,4.93148002,168.08,168.02,0.6714311]
[1641281863500,32.59627002,168.08,168.02,0.6714311]
[1641281863700,3.3571555,168.07,168.02,0.6714311]
[1641281864903,1.57432452,168.06,168.02,0.6714311]
[1641281865503,3.3571555,168.05,168.02,0.6714311]
[1641281865803,15.9455321,168.05,168.02,0.6714311]
[1641281866403,12.5883766,168.05,168.02,0.6714311]
[1641281866604,1.57432452,168.04,168.02,0.6714311]
[1641281867203,12.58837003,168.05,168.02,0.6714311]
[1641281867404,12.58837003,168.05,168.02,7.3054311]
[1641281867803,12.58837003,168.05,168.02,10.3054311]
[1641281868004,12.58837003,168.05,168.02,7.3054311]
[1641281868204,12.58837003,168.05,168.03,0.6714311]
[1641281868404,1.57460815,168.06,168.04,3.0]
[1641281868604,1.57460815,168.06,168.05,3.0]
[1641281868904,1.57460815,168.06,168.05,3.6714311]
[1641281869207,7.30277023,168.07,168.05,3.6714311]
[1641281869407,7.30277023,168.11,168.05,10.60399213]
[1641281869607,7.30277023,168.11,168.07,27.66479]
[1641281869807,3.35626114,168.1,168.07,32.19779]
[1641281870207,4.81709988,168.1,168.08,0.6714311]
[1641281870707,9.99990195,168.09,167.89,67.73268804]
[1641281870907,2.99990195,167.9,167.88,64.73268804]
[1641281871107,9.99990195,167.89,167.88,34.01268804]
[1641281871307,9.99990195,167.89,167.83,68.93854809]
[1641281871510,2.99990195,167.84,167.83,33.59854809]
[1641281871709,66.23348195,167.84,167.83,33.59854809]
[1641281871912,70.23348195,167.84,167.7,27.66479]
[1641281872110,2.99990195,167.75,167.7,27.66479]
[1641281872309,4.332,167.75,167.7,27.66479]
[1641281872709,4.332,167.75,167.71,0.6726379]
[1641281872912,2.87390634,167.74,167.71,0.6726379]
[1641281873209,4.20580829,167.75,167.71,0.6726379]
[1641281873809,1.20590634,167.75,167.71,0.6726379]
[1641281874911,3.36321782,167.74,167.71,0.6726379]
[1641281876619,3.36321782,167.77,167.72,8.0]
[1641281876816,3.36321782,167.77,167.72,13.98]
[1641281877019,3.36321782,167.78,167.73,0.6726379]
[1641281877415,6.36311977,167.78,167.73,0.6726379]
[1641281877615,3.36321782,167.78,167.73,0.6726379]
[1641281877816,3.36321782,167.77,167.73,0.6726379]
[1641281878517,7.85621782,167.78,167.73,0.6726379]
[1641281878717,2.99990195,167.77,167.73,0.6726379]
[1641281878920,6.36311977,167.77,167.73,0.6726379]
[1641281879119,2.99990195,167.76,167.73,0.6726379]
[1641281879319,3.36321782,167.76,167.73,0.6726379]
[1641281879520,6.36311977,167.76,167.73,0.6726379]
[1641281879720,3.36321782,167.76,167.73,0.6726379]
[1641281879920,2.99990195,167.74,167.73,0.6726379]
[1641281880120,3.36321782,167.77,167.73,0.6726379]
[1641281880320,3.36321782,167.74,167.71,0.6726379]
[1641281880721,2.99990195,167.75,167.71,0.6726379]
[1641281881121,3.36321782,167.74,167.71,0.6726379]
[1641281882126,2.99990195,167.73,167.71,0.6726379]
[1641281882323,3.36321782,167.74,167.71,0.6726379]
[1641281882324,2.99990195,167.72,167.71,0.6726379]
[1641281882523,3.36321782,167.72,167.71,0.6726379]
[1641281882923,2.99990195,167.74,167.63,0.6726379]
[1641281883124,3.36321782,167.76,167.63,0.6726379]
[1641281883324,3.36321782,167.73,167.61,0.6726379]
[1641281883725,48.77257534,167.69,167.61,0.6726379]
[1641281883923,48.77257534,167.69,167.62,35.66479]
[1641281884324,48.77257534,167.69,167.63,0.6726379]
[1641281885024,48.77257534,167.69,167.64,8.0]
[1641281885427,11.13951089,167.71,167.64,8.0]
[1641281885625,11.13951089,167.71,167.65,0.6726379]
[1641281885828,11.13951089,167.71,167.68,27.66479]
[1641281886028,81.28727021,167.74,167.68,27.66479]
[1641281886429,2.99990195,167.72,167.68,27.66479]
[1641281886633,2.99990195,167.72,167.69,0.6726379]
[1641281886832,2.99990195,167.72,167.68,18.2478577]
[1641281887031,3.36351959,167.71,167.68,18.2478577]
[1641281887234,3.36351959,167.71,167.68,11.52146115]
[1641281887431,3.36351959,167.71,167.64,8.0]
[1641281888233,3.36351959,167.71,167.65,0.67272293]
[1641281888433,2.99990195,167.7,167.65,0.67272293]
[1641281888633,3.36351959,167.71,167.65,0.67272293]
[1641281888834,2.99990195,167.7,167.65,0.67272293]
[1641281889134,14.50303048,167.71,167.65,0.67272293]
[1641281889335,3.36351959,167.69,167.65,0.67272293]
[1641281889736,2.99990195,167.68,167.65,0.67272293]
[1641281889934,6.36342154,167.7,167.65,0.67272293]
[1641281890137,26.82448769,167.71,167.65,0.67272293]
[1641281890337,11.13951089,167.71,167.65,0.67272293]
[1641281890737,3.36376542,167.7,167.65,0.67272293]
[1641281891336,6.36366737,167.7,167.65,0.67272293]
[1641281891537,2.99990195,167.69,167.65,0.67272293]
[1641281891836,2.99990195,167.66,167.65,0.67272293]
[1641281892036,27.66479,167.67,167.65,0.67272293]
[1641281892437,3.36376542,167.66,167.65,0.67272293]
[1641281892638,14.50327631,167.66,167.65,0.67272293]
[1641281893241,11.13951089,167.66,167.65,0.67272293]
[1641281893441,26.82448769,167.66,167.65,0.67272293]
[1641281893844,30.1888149,167.66,167.65,0.67272293]
[1641281894042,14.5038381,167.66,167.65,0.67272293]
[1641281894443,20.50374005,167.66,167.65,0.67272293]
[1641281894642,20.50374005,167.66,167.61,52.86]
[1641281894845,2.99990195,167.62,167.61,53.0]
[1641281895042,8.93890195,167.62,167.61,4.90014759]
[1641281895442,8.93890195,167.62,167.46,5.9655193]
[1641281895643,2.99990195,167.58,167.46,10.9655193]
[1641281895844,2.99990195,167.58,167.47,0.67315334]
[1641281896043,27.66479,167.56,167.47,28.33794334]
[1641281896243,27.66479,167.56,167.48,8.0]
[1641281896843,11.13951089,167.55,167.49,0.67315334]
[1641281897042,33.58453338,167.54,167.49,0.67315334]
[1641281898549,33.58453338,167.54,167.5,8.0]
[1641281898746,12.59298194,167.51,167.5,14.136]
[1641281899445,12.59298194,167.52,167.5,14.136]
[1641281900046,12.59298194,167.52,167.5,41.80079]
[1641281900247,12.59298194,167.51,167.5,41.80079]
[1641281902248,12.59298194,167.51,167.5,14.136]
[1641281902650,33.58453338,167.55,167.5,14.136]
[1641281902951,66.06177686,167.6,167.5,14.136]
[1641281903151,50.38320849,167.56,167.54,5.9624959]
[1641281903351,0.86483806,167.6,167.56,23.83222116]
[1641281903651,71.11516247,167.66,167.58,4.0]
[1641281903851,61.11516247,167.66,167.58,4.0]
[1641281904050,2.99990195,167.83,167.65,55.32958]
[1641281904252,2.99990195,167.83,167.65,60.75358]
[1641281904455,27.66479,167.84,167.65,60.75358]
[1641281904854,3.36282014,167.83,167.65,60.75358]
[1641281905056,3.36282014,167.83,167.73,5.95610352]
[1641281905256,3.36282014,167.84,167.73,6.261]
[1641281905455,3.36282014,167.84,167.76,23.8151941]
[1641281905856,2.99990195,167.84,167.76,23.8151941]
[1641281906058,3.36282014,167.86,167.79,27.66479]
[1641281906257,3.36282014,167.83,167.79,27.66479]
[1641281906658,2.99990195,167.84,167.79,27.66479]
[1641281906858,2.99990195,167.83,167.79,27.66479]
[1641281907059,3.36282014,167.83,167.79,27.66479]
[1641281907558,3.36282014,167.87,167.79,27.66479]
[1641281907863,2.99990195,167.86,167.79,27.66479]
[1641281908461,3.36282014,167.85,167.79,27.66479]
[1641281908660,2.99990195,167.82,167.79,27.66479]
[1641281909162,3.36282014,167.87,167.79,27.66479]
[1641281909366,27.66479,167.88,167.79,27.66479]
[1641281909367,3.36282014,167.81,167.79,27.66479]
[1641281909764,2.99990195,167.85,167.79,27.66479]
[1641281909963,6.36272209,167.86,167.79,27.66479]
[1641281910163,3.36282014,167.84,167.79,27.66479]
[1641281910564,3.36282014,167.87,167.8,8.0]
[1641281910864,3.36282014,167.87,167.8,14.574]
[1641281911064,3.36282014,167.89,167.8,14.574]
[1641281911863,2.99990195,167.9,167.8,14.574]
[1641281912066,2.99990195,167.89,167.86,27.66479]
[1641281912265,6.36272209,167.89,167.86,34.35279]
[1641281912666,3.36282014,167.89,167.86,34.35279]
[1641281912865,3.36282014,167.88,167.86,34.35279]
[1641281913265,3.36282014,167.89,167.86,34.35279]
[1641281913664,3.36282014,167.91,167.86,34.35279]
[1641281914064,3.36282014,167.91,167.87,0.67212282]
[1641281914869,3.36282014,167.92,167.87,0.67212282]
[1641281915369,21.0034663,167.96,167.87,0.67212282]
[1641281915566,2.99990195,167.95,167.87,0.67212282]
[1641281915768,121.2645,167.99,167.88,8.0]
[1641281915769,3.36282014,167.91,167.88,8.0]
[1641281916267,3.36282014,167.96,167.9,27.66479]
[1641281916468,3.0,167.99,167.9,27.66479]
[1641281916967,2.99990195,167.92,167.9,27.66479]
[1641281918470,2.99990195,167.91,167.88,8.0]
[1641281918670,2.99990195,167.89,167.87,6.0]
[1641281918870,3.0,167.93,167.87,6.0]
[1641281919071,2.99990195,167.88,167.87,6.0]
[1641281919271,2.99990195,167.89,167.87,6.0]
[1641281920170,3.0,167.94,167.87,6.0]
[1641281921173,2.99990195,167.89,167.87,6.0]
[1641281921974,2.99990195,167.91,167.87,6.0]
[1641281922175,1.99727142,167.93,167.87,12.088]
[1641281922376,2.99990195,167.88,167.87,12.088]
[1641281922577,1.99727142,167.93,167.87,12.088]
[1641281922777,1.99727142,167.94,167.87,12.088]
[1641281923181,2.99990195,167.88,167.87,12.088]
[1641281923383,4.99727142,167.94,167.87,12.088]
[1641281923384,33.60845446,167.9,167.87,12.088]
[1641281923980,2.99990195,167.88,167.87,12.088]
[1641281924180,2.99990195,167.88,167.87,6.0]
[1641281924681,1.99727142,167.92,167.87,6.0]
[1641281924879,5.747,167.93,167.87,6.0]
[1641281924880,124.33213674,168.26,168.18,5194.9836789]
[1641281925083,91.33213674,168.26,168.18,5200.2166789]
[1641281925282,85.71213674,168.26,168.23,3.0]
[1641281925482,23.19213674,168.26,168.25,3.0]
[1641281925682,4.0,168.44,168.23,6.664]
[1641281925883,4.0,168.38,168.23,6.664]
[1641281926084,5.9407117,168.37,168.23,6.664]
[1641281926286,5.9407117,168.37,168.25,27.66479]
[1641281926485,23.56733966,168.37,168.25,27.66479]
[1641281926883,17.62662796,168.36,168.25,27.66479]
[1641281927885,17.62662796,168.4,168.25,27.66479]
[1641281928085,4.0,168.39,168.25,27.66479]
[1641281928285,4.0,168.39,168.3,27.66479]
[1641281928486,4.0,168.39,168.3,5.776]
[1641281928688,5.9407117,168.37,168.3,5.776]
[1641281929086,17.62662796,168.36,168.3,5.776]
[1641281929288,21.62662796,168.36,168.25,27.66479]
[1641281929888,17.62662796,168.35,168.25,27.66479]
[1641281930989,5.9435364,168.29,168.19,44.69691215]
[1641281931389,5.9435364,168.29,168.28,4.19206438]
[1641281931590,5.9435364,168.29,168.19,44.69691215]
[1641281931790,9.29870155,168.29,168.19,44.69691215]
[1641281932192,3.35516515,168.28,168.2,27.66479]
[1641281932592,5.9435364,168.29,168.2,27.66479]
[1641281932793,9.9435364,168.29,168.2,27.66479]
[1641281933193,3.35516515,168.28,168.2,27.66479]
[1641281933592,5.9435364,168.29,168.2,27.66479]
[1641281933894,9.9435364,168.29,168.2,27.66479]
[1641281934092,9.9435364,168.29,168.17,27.66479]
[1641281934093,3.35516515,168.28,168.27,125.79926449]
[1641281934394,27.66479,168.28,168.27,43.88732887]
[1641281934592,27.66479,168.28,168.13,11.66479]
[1641281934593,33.60938636,168.28,168.13,11.66479]
[1641281934793,4.0,168.24,168.13,11.66479]
[1641281934993,10.248,168.24,168.13,11.66479]
[1641281935394,4.0,168.2,168.02,5.94601023]
[1641281935593,8.693,168.2,168.02,5.94601023]
[1641281935793,8.693,168.2,168.02,8.94601023]
[1641281935993,8.693,168.2,168.02,5.94601023]
[1641281936294,27.66479,168.19,168.08,27.66479]
[1641281936693,31.02114126,168.19,168.08,27.66479]
[1641281937093,3.35635126,168.18,168.09,0.67127025]
[1641281938793,3.35635126,168.18,168.06,0.67127025]
[1641281939797,4.0,168.17,168.06,0.67127025]
[1641281940199,31.02114126,168.16,168.06,0.67127025]
[1641281940397,10.04297688,168.16,168.06,0.67127025]
[1641281940601,27.66479,168.19,168.06,0.67127025]
[1641281940797,63.21226744,168.23,168.06,0.67127025]
[1641281940997,59.21226744,168.23,168.06,0.67127025]
[1641281941198,64.7006,168.26,168.06,5.03027025]
[1641281941199,60.98609798,168.26,168.06,5.03027025]
[1641281941397,5.70182095,168.37,168.06,5.03027025]
[1641281941598,3.35611222,168.22,168.06,5.03027025]
[1641281941800,5.70182095,168.37,168.33,52.61383144]
[1641281942198,59.32958,168.34,168.33,15.52573144]
[1641281942398,59.32958,168.34,168.33,12.16966768]
[1641281944101,65.27541346,168.34,168.33,8.46966768]
[1641281945804,65.27541346,168.34,168.31,5.05360845]
[1641281946606,65.27541346,168.34,168.27,33.55695776]
[1641281946807,4.0,168.29,168.23,33.55695776]
[1641281947209,14.6751028,168.28,168.23,33.55695776]
[1641281947409,14.6751028,168.28,168.15,121.41880829]